bitfinex/quotes_SOLUSD_20260105
["timestamp","ask_amount","ask_price","bid_price","bid_amount"]
[1767594823477,9.71745907,134.94,134.9,0.61846436]
[1767594823767,4.29633054,134.91,134.76,26.85792031]
[1767594823953,2.14816527,134.87,134.81,2.14816527]
[1767594824153,2.47281985,134.89,134.82,20.69023105]
[1767594824373,0.32465458,134.89,134.84,7.41586645]
[1767594824562,2.47281985,134.89,134.85,0.67846436]
[1767594825553,13.52,134.9,134.86,0.67846436]
[1767594825874,15.66816527,134.9,134.86,0.67846436]
[1767594826070,2.14816527,134.89,134.86,0.67846436]
[1767594826569,2.14816527,134.88,134.86,0.67846436]
[1767594827475,2.88967498,134.89,134.86,0.67846436]
[1767594827658,10.30316695,134.89,134.86,0.67846436]
[1767594828270,8.15500168,134.89,134.86,0.67846436]
[1767594828482,10.30316695,134.89,134.86,0.67846436]
[1767594828683,2.88967498,134.89,134.86,0.67846436]
[1767594828981,2.14816527,134.89,134.86,0.67846436]
[1767594829183,23.18233423,134.9,134.86,0.67846436]
[1767594829365,2.14816527,134.89,134.86,0.67846436]
[1767594830850,15.66816527,134.9,134.86,0.67846436]
[1767594831056,16.40967498,134.9,134.86,0.67846436]
[1767594831481,2.88967498,134.9,134.86,0.67846436]
[1767594832668,2.88967498,134.9,134.87,0.69710395]
[1767594833080,2.88967498,134.91,134.87,0.69710395]
[1767594834391,2.14816527,134.89,134.87,0.69710395]
[1767594834729,0.74150971,134.91,134.87,0.69710395]
[1767594834995,9.56122593,134.9,134.86,0.69710395]
[1767594837388,7.41306066,134.9,134.86,0.69710395]
[1767594837688,9.56122593,134.9,134.86,0.69710395]
[1767594838091,2.14816527,134.9,134.86,0.69710395]
[1767594838387,3.21207301,134.91,134.87,0.69710395]
[1767594838600,2.88967498,134.91,134.87,0.69710395]
[1767594838895,8.15387157,134.91,134.87,0.69710395]
[1767594839098,10.30203684,134.91,134.87,0.69710395]
[1767594839292,0.84050971,134.91,134.87,0.69710395]
[1767594839473,2.98867498,134.91,134.87,0.69710395]
[1767594839675,0.10123398,134.87,134.82,0.69710395]
[1767594839905,2.14816527,134.83,134.82,0.69710395]
[1767594840094,13.52,134.87,134.83,0.69710395]
[1767594840577,13.52,134.87,134.8,0.67716113]
[1767594840578,2.14816527,134.84,134.8,0.67716113]
[1767594841104,0.32018639,134.84,134.8,0.67716113]
[1767594841285,2.14816527,134.82,134.8,0.67716113]
[1767594843096,2.14816527,134.83,134.8,0.67716113]
[1767594843493,7.73656315,134.84,134.8,0.67716113]
[1767594843694,2.14816527,134.83,134.8,0.67716113]
[1767594844191,9.88472842,134.84,134.8,0.67716113]
[1767594844393,7.41637676,134.84,134.8,0.67716113]
[1767594845010,9.56454203,134.84,134.8,0.67716113]
[1767594848501,2.4705633,134.83,134.8,0.67716113]
[1767594849745,2.24939925,134.82,134.78,0.67716113]
[1767594849912,0.10123398,134.82,134.78,0.67716113]
[1767594850612,2.24939925,134.82,134.78,0.67716113]
[1767594851816,9.66670637,134.82,134.78,0.67716113]
[1767594852892,0.10123398,134.82,134.79,0.67716113]
[1767594853405,0.84274369,134.82,134.79,0.67716113]
[1767594853920,8.26004326,134.82,134.79,0.67716113]
[1767594854518,0.84274369,134.82,134.79,0.67716113]
[1767594855223,0.8127437,134.82,134.79,0.67716113]
[1767594855417,0.74150971,134.82,134.79,0.67716113]
[1767594857535,2.14816527,134.82,134.78,7.41940502]
[1767594857822,2.14816527,134.82,134.79,0.67716113]
[1767594858013,2.52643827,134.82,134.79,0.67716113]
[1767594858399,9.94387033,134.82,134.79,0.67716113]
[1767594858595,2.85243305,134.81,134.77,0.67716113]
[1767594858814,2.82243306,134.81,134.77,0.67716113]
[1767594859523,2.82243306,134.81,134.78,0.67716113]
[1767594859731,9.56512739,134.83,134.78,0.67716113]
[1767594860524,10.77694867,134.83,134.78,0.67716113]
[1767594860721,0.70756066,134.82,134.78,0.67716113]
[1767594861632,4.06754721,134.82,134.78,0.67716113]
[1767594861805,0.70756066,134.82,134.78,0.67716113]
[1767594862007,4.06754721,134.82,134.78,0.67716113]
[1767594862729,0.70756066,134.82,134.78,0.67716113]
[1767594862904,0.70756066,134.85,134.81,0.67716113]
[1767594863102,0.70756066,134.85,134.81,4.03714768]
[1767594863514,0.70756066,134.85,134.82,0.67716113]
[1767594863727,0.70756066,134.86,134.82,0.67716113]
[1767594863928,8.12284971,134.86,134.82,0.67716113]
[1767594864114,0.70756066,134.86,134.82,0.67716113]
[1767594864512,8.12269643,134.86,134.82,0.67716113]
[1767594864755,0.70756066,134.86,134.82,0.67716113]
[1767594866935,8.12270756,134.86,134.82,0.67716113]
[1767594867634,11.48269411,134.86,134.82,0.67716113]
[1767594869333,8.12270756,134.86,134.82,0.67716113]
[1767594870341,11.48269411,134.86,134.82,0.67716113]
[1767594872047,8.12270756,134.86,134.82,0.67716113]
[1767594872344,11.48269411,134.86,134.82,0.67716113]
[1767594872519,8.12270756,134.86,134.82,0.67716113]
[1767594872719,11.48269411,134.86,134.82,0.67716113]
[1767594876835,0.31887302,134.85,134.82,0.67716113]
[1767594877042,0.68275071,134.84,134.81,0.6926906]
[1767594877535,17.56273726,134.87,134.83,0.6926906]
[1767594878036,0.34343487,134.86,134.83,0.6926906]
[1767594878242,3.70342142,134.86,134.82,0.6926906]
[1767594878841,7.75879661,134.86,134.82,0.6926906]
[1767594879534,11.11878316,134.86,134.82,0.6926906]
[1767594882244,3.70342142,134.86,134.83,0.6926906]
[1767594882841,0.34343487,134.86,134.83,0.6926906]
[1767594883036,8.53993604,134.96,134.85,0.6926906]
[1767594883037,0.40283485,134.9,134.85,0.6926906]
[1767594883245,0.6772081,134.86,134.82,20.93705758]
[1767594883546,0.6772081,134.86,134.82,24.29704413]
[1767594883954,0.6772081,134.86,134.82,24.98973473]
[1767594884845,0.6772081,134.86,134.83,10.77661238]
[1767594885736,0.6772081,134.86,134.82,14.2126906]
[1767594886049,0.64720811,134.86,134.82,24.98992954]
[1767594886544,0.64720811,134.86,134.82,11.46992954]
[1767594886750,7.4151256,134.86,134.82,3.35998655]
[1767594887652,10.77466233,134.87,134.82,3.35998655]
[1767594888026,0.68275071,134.86,134.82,3.35998655]
[1767594888245,0.68275071,134.86,134.82,11.46967403]
[1767594888426,0.34343487,134.87,134.83,0.6926906]
[1767594891248,0.34343487,134.87,134.83,4.05267715]
[1767594891433,8.10261699,134.88,134.84,0.70785926]
[1767594891631,11.46260354,134.88,134.84,0.70785926]
[1767594892339,21.62206126,134.89,134.85,4.06784581]
[1767594892536,21.62206126,134.89,134.86,0.70785926]
[1767594893637,0.33780072,134.88,134.85,0.70785926]
[1767594895553,21.62206126,134.89,134.85,0.70785926]
[1767594896349,0.33780072,134.88,134.85,0.70785926]
[1767594896928,0.68844177,134.91,134.87,0.70785926]
[1767594897255,0.68844177,134.91,134.88,0.70785926]
[1767594897751,14.20844177,134.92,134.88,0.70785926]
[1767594898054,17.56842832,134.92,134.88,0.70785926]
[1767594898347,21.62030256,134.92,134.89,0.70785926]
[1767594901854,13.52,134.92,134.9,0.72408114]
[1767594902036,24.96531885,134.92,134.88,0.72408114]
[1767594902437,21.6053323,134.92,134.88,0.72408114]
[1767594902634,24.96531885,134.92,134.88,0.72408114]
[1767594902833,21.6053323,134.92,134.88,0.72408114]
[1767594903156,21.6053323,134.92,134.89,0.72408114]
[1767594903959,13.52,134.92,134.9,0.72408114]
[1767594904260,0.34955663,134.93,134.89,10.77342388]
[1767594904462,0.34955663,134.93,134.89,11.49750502]
[1767594905858,20.93086398,134.94,134.9,0.72408114]
[1767594906154,13.86955663,134.94,134.91,0.72408114]
[1767594906461,11.31935852,134.96,134.92,0.72408114]
[1767594906635,24.83935852,134.96,134.92,0.72408114]
[1767594906841,21.47937197,134.96,134.92,0.72408114]
[1767594907160,21.47937197,134.96,134.92,4.08406769]
[1767594908261,24.83935852,134.96,134.92,0.72408114]
[1767594908452,21.80638245,134.96,134.92,0.72408114]
[1767594908762,25.166369,134.96,134.92,0.72408114]
[1767594908939,21.80638245,134.96,134.92,0.72408114]
[1767594909340,25.166369,134.96,134.92,0.72408114]
[1767594909651,0.34955663,134.95,134.92,0.72408114]
[1767594910558,3.70954318,134.95,134.92,0.72408114]
[1767594910760,25.166369,134.96,134.92,0.72408114]
[1767594911062,21.80638245,134.96,134.92,0.72408114]
[1767594911266,25.166369,134.96,134.92,0.72408114]
[1767594912557,21.80638245,134.96,134.92,0.72408114]
[1767594912764,7.75972036,134.95,134.92,0.72408114]
[1767594913662,7.41016373,134.95,134.92,0.72408114]
[1767594914064,11.11970691,134.95,134.92,0.72408114]
[1767594916753,0.35279403,134.93,134.89,0.72408114]
[1767594916952,3.71595356,134.91,134.88,0.72408114]
[1767594917171,4.02693728,134.9,134.86,0.72408114]
[1767594917462,3.35998655,134.89,134.86,0.72408114]
[1767594917960,3.35998655,134.88,134.86,0.72408114]
[1767594918339,3.7190634,134.89,134.86,0.72408114]
[1767594920779,2.50740717,134.89,134.86,0.72408114]
[1767594921074,9.92103733,134.89,134.86,0.72408114]
[1767594925053,7.77270701,134.89,134.86,0.72408114]
[1767594925554,9.92103733,134.89,134.86,0.72408114]
[1767594927157,7.77270701,134.89,134.86,0.72408114]
[1767594927358,9.92103733,134.89,134.86,0.72408114]
[1767594928363,7.77270701,134.89,134.85,0.72408114]
[1767594928564,9.92103733,134.89,134.85,0.72408114]
[1767594928768,7.77270701,134.89,134.85,0.72408114]
[1767594928967,9.92103733,134.89,134.85,0.72408114]
[1767594929980,13.52,134.9,134.86,0.72408114]
[1767594930281,8.08781738,134.93,134.89,0.72408114]
[1767594930458,10.2361477,134.93,134.89,0.72408114]
[1767594931067,2.14833032,134.92,134.89,0.72408114]
[1767594931467,9.56017405,134.92,134.89,0.72408114]
[1767594931775,9.90973068,134.92,134.89,0.72408114]
[1767594931979,2.82162733,134.91,134.88,0.72026727]
[1767594932480,0.67329701,134.91,134.88,0.72026727]
[1767594933168,2.82162733,134.91,134.88,0.72026727]
[1767594933761,0.67329701,134.91,134.88,0.72026727]
[1767594933962,2.82162733,134.91,134.88,0.72026727]
[1767594934462,9.56017405,134.92,134.88,0.72026727]
[1767594934652,9.86682683,134.92,134.88,0.72026727]
[1767594935665,7.71849651,134.92,134.88,0.72026727]
[1767594935961,9.86682683,134.92,134.88,0.72026727]
[1767594937272,7.71849651,134.92,134.88,0.72026727]
[1767594938778,9.86682683,134.92,134.88,0.72026727]
[1767594940566,2.86823465,134.91,134.88,0.72026727]
[1767594941681,8.13174806,134.92,134.88,0.72026727]
[1767594941884,2.14833032,134.91,134.88,0.72026727]
[1767594942588,2.14833032,134.91,134.85,32.05911753]
[1767594942589,2.48468309,134.89,134.85,14.24026727]
[1767594942774,2.14833032,134.89,134.86,0.72026727]
[1767594944686,8.13308241,134.9,134.86,0.72026727]
[1767594944883,10.28141273,134.9,134.86,0.72026727]
[1767594945083,2.14833032,134.89,134.86,0.72026727]
[1767594950380,8.13308241,134.9,134.86,0.72026727]
[1767594950781,10.28141273,134.9,134.86,0.72026727]
[1767594951489,10.43491586,134.96,134.9,0.68366591]
[1767594951680,0.37890707,134.95,134.91,2.14833032]
[1767594952584,0.2,134.96,134.94,2.14833032]
[1767594953093,0.2,134.98,134.95,2.14833032]
[1767594953293,0.2,134.98,134.92,13.52]
[1767594953597,21.12744211,135.0,134.97,0.68366591]
[1767594953894,0.67692019,134.99,134.96,2.14833032]
[1767594954488,0.67692019,134.99,134.95,9.55840115]
[1767594954681,21.8043623,135.0,134.95,9.55840115]
[1767594955287,21.8043623,135.0,134.96,2.14833032]
[1767594955679,21.8043623,135.0,134.96,2.83199623]
[1767594955870,21.8043623,135.0,134.97,0.68366591]
[1767594956896,2.82525051,134.99,134.95,0.68366591]
[1767594957094,0.67692019,134.98,134.95,0.68366591]
[1767594957796,2.82525051,134.99,134.95,0.68366591]
[1767594957997,0.67692019,134.99,134.95,0.68366591]
[1767594958191,2.82525051,134.99,134.95,0.68366591]
[1767594958592,10.23333509,134.99,134.95,0.68366591]
[1767594958791,8.08500477,134.99,134.95,0.68366591]
[1767594958995,10.23333509,134.99,134.95,0.68366591]
[1767594960500,8.08500477,134.99,134.95,0.68366591]
[1767594960699,10.23333509,134.99,134.95,0.68366591]
[1767594960892,10.23333509,134.99,134.95,0.62366591]
[1767594961304,9.5564149,134.99,134.93,7.4112404]
[1767594961502,2.14833032,134.94,134.89,2.14833032]
[1767594961806,2.14833032,134.92,134.89,7.41337365]
[1767594961983,2.14833032,134.91,134.87,7.41441329]
[1767594962188,2.82105132,134.92,134.88,7.41384384]
[1767594962795,2.82105132,134.92,134.88,8.11555312]
[1767594963507,0.672721,134.93,134.89,0.70170928]
[1767594963703,15.66833032,134.94,134.89,0.70170928]
[1767594964212,14.192721,134.94,134.9,0.70170928]
[1767594964403,23.75178115,134.94,134.9,0.70170928]
[1767594964708,16.34105132,134.94,134.9,0.70170928]
[1767594965287,2.82105132,134.94,134.9,0.70170928]
[1767594965604,0.672721,134.94,134.9,7.41273761]
[1767594966605,0.672721,134.94,134.9,10.26277721]
[1767594966807,10.23065416,134.96,134.92,0.70170928]
[1767594968016,2.82105132,134.96,134.92,0.70170928]
[1767594968210,2.14833032,134.95,134.92,0.70170928]
[1767594969417,2.14833032,134.96,134.93,0.70170928]
[1767594970121,23.75029617,134.97,134.93,0.70170928]
[1767594972095,3.02105132,135.0,134.96,0.70170928]
[1767594972715,0.2,135.0,134.97,0.70170928]
[1767594973020,0.2,135.0,134.98,0.70170928]
[1767594973200,0.2,135.0,134.97,2.14833032]
[1767594973403,0.2,135.01,134.97,2.14833032]
[1767594973711,0.672721,135.0,134.97,2.14833032]
[1767594974030,0.2,135.01,134.98,7.40850496]
[1767594974521,0.2,135.01,134.98,7.35494999]
[1767594975424,0.2,135.01,134.99,0.52239106]
[1767594978106,0.2,135.01,134.98,0.52239106]
[1767594978513,0.872721,135.01,134.97,7.93132559]
[1767594978708,0.872721,135.01,134.97,0.52239106]
[1767594978901,0.672721,134.99,134.96,7.40940254]
[1767594980105,0.672721,134.99,134.96,9.55773286]
[1767594981325,0.2,135.01,134.97,0.52239106]
[1767594981523,0.2,135.01,134.98,0.52239106]
[1767594981703,0.872721,135.03,134.99,0.52239106]
[1767594982023,0.872721,135.03,134.99,2.67072138]
[1767594982208,0.872721,135.03,134.99,10.01818628]
[1767594982522,0.872721,135.03,134.99,11.21879962]
[1767594983000,0.2,135.04,135.0,3.34894366]
[1767594983203,0.2,135.04,135.01,3.34894366]
[1767594983819,0.2,135.04,135.02,3.34894366]
[1767594983820,0.13759605,135.04,135.02,3.34894366]
[1767594984209,0.81031705,135.04,135.02,7.40603283]
[1767594984423,0.13759605,135.04,135.02,7.40603283]
[1767594984620,0.13759605,135.04,135.02,10.75497649]
[1767594985124,0.13759605,135.04,135.02,7.40603283]
[1767594985428,0.13759605,135.04,135.01,7.40669098]
[1767594985811,0.81031705,135.04,135.01,6.68169098]
[1767594986008,4.15926071,135.04,135.01,0.70170928]
[1767594986199,0.13759605,135.04,135.01,0.70170928]
[1767594986622,0.13759605,135.04,135.01,8.10841881]
[1767594987333,0.872721,135.07,135.04,0.70170928]
[1767594987527,0.672721,135.06,135.03,3.34894366]
[1767594987709,0.2,135.07,135.03,0.70170928]
[1767594988215,4.22166466,135.07,135.03,0.70170928]
[1767594988419,4.22166466,135.07,135.03,8.10743826]
[1767594988605,0.872721,135.07,135.04,0.70170928]
[1767594988807,0.2,135.07,135.04,0.70170928]
[1767594989508,0.2,135.07,135.03,7.40572898]
[1767594989509,0.672721,135.06,135.03,7.40572898]
[1767594989709,0.672721,135.06,135.03,10.75467264]
[1767594990013,0.872721,135.07,135.03,11.45638192]
[1767594990424,0.872721,135.07,135.03,8.10743826]
[1767594991130,4.22166466,135.07,135.03,8.10743826]
[1767594992131,0.872721,135.07,135.03,8.10743826]
[1767594992828,0.872721,135.07,135.0,0.74074074]
[1767594992829,0.71310923,135.04,135.0,0.74074074]
[1767594993136,0.71310923,135.02,134.98,13.5]
[1767594993809,0.71310923,135.02,134.99,7.40780877]
[1767594994739,0.71310923,135.02,134.98,20.9082866]
[1767594995039,3.34894366,135.02,134.99,0.67159747]
[1767594995715,4.06205289,135.03,134.99,0.67159747]
[1767594996443,4.06205289,135.03,134.99,8.07949583]
[1767594999440,4.06205289,135.02,134.98,14.17159747]
[1767594999648,4.06205289,135.02,134.98,0.67159747]
[1767595000149,0.71310923,135.04,135.0,0.67159747]
[1767595000324,4.06205289,135.03,134.99,0.67159747]
[1767595000526,0.71310923,135.03,134.99,0.67159747]
[1767595000718,0.71310923,135.03,134.98,7.40832711]
[1767595000719,4.06205289,135.02,134.98,8.07992458]
[1767595001751,0.71310923,135.02,134.98,8.07992458]
[1767595002429,0.71310923,135.02,134.98,11.42886824]
[1767595003527,0.71310923,135.02,134.99,4.02054113]
[1767595004040,0.71310923,135.02,134.99,11.42839965]
[1767595007738,0.71310923,135.04,135.0,8.07886493]
[1767595011870,0.71310923,135.04,135.01,0.67703954]
[1767595013645,8.09527754,135.06,135.02,0.67703954]
[1767595014345,0.89093757,135.07,135.04,0.67703954]
[1767595014545,0.2,135.07,135.04,0.67703954]
[1767595016170,0.89093757,135.07,135.04,8.08221233]
[1767595016372,0.89093757,135.07,135.04,7.40517279]
[1767595016750,0.89093757,135.07,135.03,11.43152598]
[1767595020463,0.7092804,135.06,135.03,0.67703954]
[1767595021471,0.7092804,135.06,135.02,24.25506734]
[1767595021472,4.05822406,135.05,135.01,0.72158886]
[1767595023080,0.7092804,135.04,135.0,0.72158886]
[1767595023384,0.7092804,135.04,135.01,0.72158886]
[1767595026569,0.7092804,135.04,135.0,8.12893199]
[1767595028993,0.7092804,135.04,135.01,0.72158886]
[1767595030304,0.7092804,135.04,135.01,8.1283848]
[1767595030591,0.7092804,135.06,135.03,0.72158886]
[1767595031166,0.7092804,135.06,135.03,7.40576168]
[1767595031391,0.7092804,135.06,135.02,8.12766702]
[1767595031598,0.7092804,135.06,135.02,11.47661068]
[1767595032696,0.9092804,135.07,135.03,4.07053252]
[1767595033182,0.9092804,135.07,135.03,11.476143]
[1767595033895,0.9092804,135.07,135.03,8.12719934]
[1767595034090,0.2,135.07,135.03,8.12719934]
[1767595034392,0.2,135.07,135.03,11.476143]
[1767595034393,0.7092804,135.06,135.03,11.476143]
[1767595034586,0.7092804,135.06,135.03,10.75455414]
[1767595035582,0.7092804,135.06,135.03,11.476143]
[1767595036086,0.7092804,135.06,135.03,8.12719934]
[1767595036286,0.7092804,135.06,135.03,11.476143]
[1767595039199,0.9092804,135.07,135.03,11.476143]
[1767595040974,11.46240776,135.06,135.02,0.72158886]
[1767595041193,0.7092804,135.06,135.03,8.1273131]
[1767595043502,0.7092804,135.06,135.03,0.72158886]
[1767595048806,0.9092804,135.07,135.03,8.12724152]
[1767595049009,0.9092804,135.07,135.03,10.26958614]
[1767595049713,0.9092804,135.07,135.03,8.12724152]
[1767595049918,0.7092804,135.06,135.03,0.72158886]
[1767595050400,0.9092804,135.07,135.03,8.1273205]
[1767595051509,8.3129323,135.07,135.03,0.72158886]
[1767595051690,0.72244401,135.06,135.03,0.72158886]
[1767595053393,0.72244401,135.06,135.02,0.70609516]
[1767595053590,0.72244401,135.06,135.0,95.15850432]
[1767595053591,0.72244401,135.04,135.0,76.60609516]
[1767595053797,0.72244401,135.04,135.01,0.70609516]
[1767595054696,0.72244401,135.04,135.0,8.11333113]
[1767595055996,2.86478863,135.04,135.0,8.11333113]
[1767595056402,0.72244401,135.04,135.0,8.11333113]
[1767595057699,0.72244401,135.04,135.0,7.40723597]
[1767595058507,0.72244401,135.05,135.02,2.84843978]
[1767595058803,0.72244401,135.05,135.01,2.84843978]
[1767595059204,0.72244401,135.05,135.01,0.70609516]
[1767595059802,0.72244401,135.04,135.0,69.80723597]
[1767595060124,0.72244401,135.04,135.0,72.65567575]
[1767595060422,2.14234462,135.05,135.0,72.65567575]
[1767595060423,0.72244401,135.05,135.02,0.70609516]
[1767595063207,2.86478863,135.05,135.02,0.70609516]
[1767595063914,0.72244401,135.05,135.02,0.70609516]
[1767595068133,2.14234462,135.06,135.03,0.70609516]
[1767595068339,2.86478863,135.06,135.03,0.70609516]
[1767595068518,0.92244401,135.07,135.03,0.70609516]
[1767595068711,0.2,135.07,135.04,0.70609516]
[1767595068911,0.2,135.07,135.05,0.70609516]
[1767595069434,0.2,135.07,135.05,8.1107526]
[1767595071132,0.2,135.07,135.05,10.25309722]
[1767595072114,0.2,135.07,135.05,8.1107526]
[1767595072315,0.2,135.07,135.05,10.25309722]
[1767595073551,0.2,135.07,135.05,8.1107526]
[1767595082052,0.2,135.09,135.07,0.72377274]
[1767595083446,0.2,135.1,135.08,2.86611736]
[1767595083650,0.7071159,135.12,135.09,2.86611736]
[1767595084848,0.7071159,135.12,135.08,10.26899473]
[1767595085348,0.7071159,135.12,135.08,9.54522199]
[1767595086648,0.7071159,135.12,135.08,7.40287737]
[1767595086943,0.7071159,135.12,135.08,9.54522199]
[1767595088848,0.7071159,135.12,135.08,7.40287737]
[1767595089050,0.7071159,135.12,135.08,9.54522199]
[1767595090252,0.7071159,135.12,135.08,10.26899473]
[1767595091661,0.7071159,135.12,135.09,0.72377274]
[1767595092552,0.7071159,135.13,135.09,0.72377274]
[1767595092932,0.7071159,135.13,135.09,8.12583781]
[1767595093957,0.7071159,135.12,135.09,7.40206507]
[1767595095362,0.7071159,135.12,135.09,8.12583781]
[1767595097478,0.7071159,135.12,135.09,0.72377274]
[1767595097658,2.84946052,135.12,135.08,70.52663615]
[1767595097958,0.7071159,135.11,135.08,70.52663615]
[1767595098454,0.7071159,135.11,135.08,69.80286341]
[1767595099570,0.7071159,135.11,135.08,62.4]
[1767595099743,0.7071159,135.11,135.07,20.90341943]
[1767595100246,0.7071159,135.11,135.08,7.40275768]
[1767595105064,0.2,135.15,135.11,0.72377274]
[1767595105264,7.59712326,135.19,135.14,3.34469845]
[1767595105565,7.59712326,135.19,135.14,4.06847119]
[1767595106060,7.59712326,135.19,135.15,3.34469845]
[1767595107060,8.26375388,135.19,135.15,3.34469845]
[1767595107242,8.26375388,135.19,135.14,4.06847119]
[1767595107443,0.66663062,135.18,135.14,4.06847119]
[1767595107967,0.66663062,135.18,135.15,3.34469845]
[1767595108267,0.66663062,135.18,135.15,4.06847119]
[1767595108647,0.66663062,135.18,135.15,0.72377274]
[1767595108850,0.66663062,135.17,135.13,0.72377274]
[1767595109055,0.66663062,135.17,135.13,4.06847119]
[1767595111042,0.66663062,135.17,135.13,0.72377274]
[1767595111249,0.66663062,135.17,135.13,4.06847119]
[1767595112548,0.66663062,135.17,135.13,11.46861817]
[1767595117465,0.66663062,135.17,135.12,7.40065818]
[1767595117466,3.34469845,135.16,135.12,7.40065818]
[1767595117772,0.66663062,135.15,135.12,7.40065818]
[1767595117983,0.66663062,135.15,135.12,8.09851039]
[1767595121278,0.66663062,135.15,135.12,11.44320884]
[1767595122276,0.70774303,135.17,135.13,4.04255066]
[1767595123577,0.70774303,135.17,135.15,3.34469845]
[1767595124074,0.70774303,135.17,135.14,4.04255066]
[1767595125972,0.70774303,135.17,135.13,0.69785221]
[1767595126153,0.66600975,135.16,135.13,0.69785221]
[1767595126554,0.66600975,135.16,135.13,4.04255066]
[1767595127153,0.66600975,135.16,135.13,8.09787359]
[1767595127357,0.66600975,135.16,135.13,11.44257204]
[1767595127879,0.66600975,135.16,135.13,8.09787359]
[1767595130075,0.66600975,135.16,135.13,11.44257204]
[1767595130982,0.66600975,135.16,135.13,0.69785221]
[1767595133269,0.67384848,135.16,135.13,0.69785221]
[1767595134273,0.69982512,135.17,135.13,0.69785221]
[1767595139988,21.75102366,135.19,135.15,0.68021729]
[1767595141081,0.69956536,135.18,135.15,0.68021729]
[1767595145488,0.91008509,135.23,135.19,0.66859524]
[1767595146167,0.91008509,135.23,135.2,0.66859524]
[1767595146369,0.2,135.23,135.2,0.66859524]
[1767595146565,0.2,135.23,135.2,0.60859524]
[1767595146791,0.2,135.23,135.2,0.54859524]
[1767595146984,0.2,135.23,135.2,3.34469845]
[1767595147487,0.2,135.23,135.2,10.74065027]
[1767595148190,0.2,135.23,135.21,3.34469845]
[1767595148394,0.01999991,135.23,135.21,3.34469845]
[1767595148696,0.01999991,135.23,135.21,10.74059806]
[1767595148872,0.01999991,135.23,135.22,4.01329369]
[1767595149195,0.1,135.25,135.23,0.66859524]
[1767595150595,0.91008509,135.28,135.24,0.66859524]
[1767595150892,4.25478354,135.28,135.24,0.66859524]
[1767595152089,0.91008509,135.28,135.24,0.66859524]
[1767595152290,3.34469845,135.27,135.24,0.66859524]
[1767595153293,4.05478354,135.27,135.24,0.66859524]
[1767595154302,0.71008509,135.27,135.24,0.66859524]
[1767595154479,0.71008509,135.26,135.23,7.39470039]
[1767595156412,0.2,135.28,135.24,0.66859524]
[1767595156584,3.54469845,135.28,135.24,0.66859524]
[1767595156783,3.34469845,135.27,135.24,0.66859524]
[1767595157303,0.2,135.28,135.24,0.66859524]
[1767595157600,3.54469845,135.28,135.24,0.66859524]
[1767595158000,0.2,135.28,135.24,0.66859524]
[1767595158501,3.54469845,135.28,135.25,0.66859524]
[1767595159599,0.2,135.28,135.25,0.66859524]
[1767595159800,3.54469845,135.28,135.25,0.66859524]
[1767595160603,0.2,135.28,135.25,0.66859524]
[1767595160797,3.54469845,135.28,135.25,0.66859524]
[1767595162690,0.2,135.28,135.25,0.66859524]
[1767595162892,3.54469845,135.28,135.25,0.66859524]
[1767595164893,0.2,135.28,135.25,0.66859524]
[1767595165093,3.54469845,135.28,135.25,0.66859524]
[1767595166607,0.2,135.28,135.25,0.66859524]
[1767595167292,0.2,135.28,135.26,0.66859524]
[1767595172005,0.2,135.28,135.25,0.66615492]
[1767595172198,2.33562846,135.28,135.25,0.66615492]
[1767595172406,0.2,135.28,135.27,0.66615492]
[1767595172600,0.82994906,135.28,135.25,8.0596513]
[1767595172807,0.2,135.28,135.26,0.66615492]
[1767595174214,0.63018799,135.27,135.25,7.39349638]
[1767595174413,0.2,135.28,135.26,0.66615492]
[1767595175211,2.13562846,135.27,135.24,62.4]
[1767595175409,2.13562846,135.27,135.23,83.27429745]
[1767595175718,2.13562846,135.27,135.24,0.66615492]
[1767595176210,2.13562846,135.26,135.24,0.66615492]
[1767595176415,2.69583554,135.26,135.23,83.94045237]
[1767595176621,2.13562846,135.27,135.24,0.66615492]
[1767595176814,2.69122346,135.27,135.24,0.66615492]
[1767595176999,0.555595,135.27,135.24,8.06033035]
[1767595177199,2.69122346,135.27,135.23,83.94054515]
[1767595177503,2.69122346,135.27,135.24,0.66615492]
[1767595178704,2.13562846,135.25,135.22,0.66615492]
[1767595178905,0.555595,135.25,135.22,0.66615492]
[1767595179102,2.13562846,135.25,135.22,7.3953448]
[1767595179412,2.13562846,135.25,135.23,0.66615492]
[1767595182422,2.23919441,135.24,135.21,0.66615492]
[1767595182618,0.10356595,135.24,135.18,8.80328738]
[1767595182800,0.55107471,135.22,135.18,8.80328738]
[1767595183005,2.68670317,135.22,135.18,8.80328738]
[1767595183320,0.10804104,135.21,135.18,8.13713246]
[1767595183518,0.10804104,135.21,135.18,7.39737806]
[1767595183719,0.56020708,135.25,135.2,0.66615492]
[1767595184020,0.2,135.28,135.19,0.66615492]
[1767595184021,0.555595,135.23,135.19,0.66615492]
[1767595184421,2.13562846,135.24,135.19,0.66615492]
[1767595184622,2.23462846,135.24,135.19,0.66615492]
[1767595185130,2.13562846,135.22,135.19,0.66615492]